[Event "Titled Tuesday Blitz December 06 Late 2022"]
[White "Issani, Nameer"]
[Black "Sadhwani, Raunak"]
[WhiteFideId "2619130"]
[BlackFideId "35093487"]
[WhiteElo "2645"]
[BlackElo "2657"]
[Result "0-1"]
[Round "02"]
[TimeControl "180+1"]
[Date "2022.12.06"]
[WhiteClock "0:00:14"]
[BlackClock "0:01:15"]

1. d4 {[%clk 0:02:45]}  d6 {[%clk 0:02:59]} 2. c4 {[%clk 0:02:45]}  e5 {[%clk 0:02:59]} 3. Nf3 {[%clk 0:02:38]}  e4 {[%clk 0:02:55]} 4. Nfd2 {[%clk 0:02:38]}  f5 {[%clk 0:02:55]} 5. e3 {[%clk 0:02:37]}  Nf6 {[%clk 0:02:55]} 6. Nc3 {[%clk 0:02:37]}  c6 {[%clk 0:02:54]} 7. d5 {[%clk 0:02:35]}  Be7 {[%clk 0:02:52]} 8. Be2 {[%clk 0:02:35]}  O-O {[%clk 0:02:52]} 9. O-O {[%clk 0:02:35]}  Na6 {[%clk 0:02:52]} 10. Nb3 {[%clk 0:02:35]}  Nc7 {[%clk 0:02:49]} 11. f3 {[%clk 0:02:33]}  exf3 {[%clk 0:02:45]} 12. Bxf3 {[%clk 0:02:34]}  cxd5 {[%clk 0:02:40]} 13. cxd5 {[%clk 0:02:33]}  Nd7 {[%clk 0:02:30]} 14. Nd4 {[%clk 0:02:31]}  Ne5 {[%clk 0:02:31]} 15. e4 {[%clk 0:02:24]}  f4 {[%clk 0:02:25]} 16. Be2 {[%clk 0:01:51]}  g5 {[%clk 0:02:24]} 17. Kh1 {[%clk 0:01:45]}  Bf6 {[%clk 0:02:23]} 18. b4 {[%clk 0:01:37]}  Bd7 {[%clk 0:02:21]} 19. Bb2 {[%clk 0:01:37]}  Rc8 {[%clk 0:02:21]} 20. Rc1 {[%clk 0:01:37]}  Qe7 {[%clk 0:02:20]} 21. b5 {[%clk 0:01:27]}  Na8 {[%clk 0:02:17]} 22. Nf5 {[%clk 0:01:07]}  Bxf5 {[%clk 0:02:17]} 23. exf5 {[%clk 0:01:08]}  Nd7 {[%clk 0:02:18]} 24. Bd3 {[%clk 0:01:05]}  Qg7 {[%clk 0:02:16]} 25. Qd2 {[%clk 0:00:58]}  Nab6 {[%clk 0:02:16]} 26. Nd1 {[%clk 0:00:56]}  Rxc1 {[%clk 0:02:12]} 27. Bxc1 {[%clk 0:00:52]}  Nc5 {[%clk 0:02:09]} 28. Ba3 {[%clk 0:00:52]}  Bd4 {[%clk 0:02:01]} 29. Be2 {[%clk 0:00:39]}  Re8 {[%clk 0:01:51]} 30. Bh5 {[%clk 0:00:38]}  Re7 {[%clk 0:01:51]} 31. Qc1 {[%clk 0:00:33]}  Qf6 {[%clk 0:01:44]} 32. Bg4 {[%clk 0:00:33]}  Nd3 {[%clk 0:01:41]} 33. Qd2 {[%clk 0:00:33]}  Nc5 {[%clk 0:01:38]} 34. Bxc5 {[%clk 0:00:29]}  Bxc5 {[%clk 0:01:37]} 35. Qd3 {[%clk 0:00:27]}  Bd4 {[%clk 0:01:36]} 36. h4 {[%clk 0:00:28]}  h6 {[%clk 0:01:31]} 37. h5 {[%clk 0:00:27]}  Kg7 {[%clk 0:01:28]} 38. Nf2 {[%clk 0:00:26]}  Bxf2 {[%clk 0:01:29]} 39. Rxf2 {[%clk 0:00:27]}  Nd7 {[%clk 0:01:28]} 40. Rc2 {[%clk 0:00:24]}  Ne5 {[%clk 0:01:29]} 41. Qe2 {[%clk 0:00:24]}  f3 {[%clk 0:01:20]} 42. Bxf3 {[%clk 0:00:24]}  Qxf5 {[%clk 0:01:20]} 43. Rd2 {[%clk 0:00:21]}  g4 {[%clk 0:01:19]} 44. Be4 {[%clk 0:00:21]}  Qxh5+ {[%clk 0:01:19]} 45. Kg1 {[%clk 0:00:21]}  Qg5 {[%clk 0:01:18]} 46. Rc2 {[%clk 0:00:21]}  g3 {[%clk 0:01:15]} 47. Qd2 {[%clk 0:00:18]}  Qh4 {[%clk 0:01:14]} 48. Qd4 {[%clk 0:00:16]}  Rf7 {[%clk 0:01:14]} 49. Bf3 {[%clk 0:00:14]}  Qxd4+ {[%clk 0:01:15]} 0-1


[Site "https://www.chess.com"]

[Event "Titled Tuesday Blitz December 06 Late 2022"]
[White "Jaracz, Pawel"]
[Black "Firouzja, Alireza"]
[WhiteFideId "1102222"]
[BlackFideId "12573981"]
[WhiteElo "2460"]
[BlackElo "2904"]
[Result "0-1"]
[Round "02"]
[TimeControl "180+1"]
[Date "2022.12.06"]
[WhiteClock "0:00:23"]
[BlackClock "0:01:56"]

1. e4 {[%clk 0:03:00]}  c6 {[%clk 0:02:59]} 2. d4 {[%clk 0:03:00]}  g6 {[%clk 0:02:58]} 3. Nc3 {[%clk 0:03:00]}  Bg7 {[%clk 0:02:58]} 4. Be3 {[%clk 0:03:00]}  d5 {[%clk 0:02:57]} 5. e5 {[%clk 0:03:00]}  h5 {[%clk 0:02:56]} 6. Qd2 {[%clk 0:02:59]}  Nh6 {[%clk 0:02:56]} 7. O-O-O {[%clk 0:02:53]}  Nf5 {[%clk 0:02:56]} 8. f4 {[%clk 0:02:52]}  b5 {[%clk 0:02:51]} 9. Nf3 {[%clk 0:02:39]}  Qa5 {[%clk 0:02:50]} 10. Kb1 {[%clk 0:02:37]}  Nd7 {[%clk 0:02:50]} 11. Bf2 {[%clk 0:02:27]}  Nb6 {[%clk 0:02:49]} 12. b3 {[%clk 0:02:24]}  Rb8 {[%clk 0:02:49]} 13. Ne2 {[%clk 0:02:13]}  Qa3 {[%clk 0:02:45]} 14. Ka1 {[%clk 0:02:02]}  a5 {[%clk 0:02:43]} 15. Qc1 {[%clk 0:01:58]}  Qxc1+ {[%clk 0:02:41]} 16. Nxc1 {[%clk 0:01:58]}  a4 {[%clk 0:02:41]} 17. Nd3 {[%clk 0:01:56]}  Nh6 {[%clk 0:02:41]} 18. h3 {[%clk 0:01:55]}  Bf5 {[%clk 0:02:41]} 19. Nb4 {[%clk 0:01:52]}  e6 {[%clk 0:02:36]} 20. Nxc6 {[%clk 0:01:47]}  Rc8 {[%clk 0:02:36]} 21. Bxb5 {[%clk 0:01:46]}  Kf8 {[%clk 0:02:35]} 22. Kb2 {[%clk 0:01:35]}  Be4 {[%clk 0:02:30]} 23. Ng5 {[%clk 0:01:32]}  Nf5 {[%clk 0:02:28]} 24. Nxe4 {[%clk 0:01:29]}  dxe4 {[%clk 0:02:28]} 25. Rhe1 {[%clk 0:01:28]}  Nd5 {[%clk 0:02:19]} 26. Rxe4 {[%clk 0:01:24]}  a3+ {[%clk 0:02:19]} 27. Kc1 {[%clk 0:00:44]}  Nc3 {[%clk 0:02:18]} 28. Be1 {[%clk 0:00:42]}  Nxe4 {[%clk 0:02:10]} 29. Bb4+ {[%clk 0:00:42]}  Kg8 {[%clk 0:02:11]} 30. Re1 {[%clk 0:00:39]}  Neg3 {[%clk 0:02:05]} 31. Bd2 {[%clk 0:00:33]}  Kh7 {[%clk 0:02:02]} 32. c3 {[%clk 0:00:32]}  Rc7 {[%clk 0:02:02]} 33. Na5 {[%clk 0:00:25]}  Rhc8 {[%clk 0:02:01]} 34. Bc4 {[%clk 0:00:23]}  Ra8 {[%clk 0:01:56]} 0-1


[Site "https://www.chess.com"]

[Event "Titled Tuesday Blitz December 06 Late 2022"]
[White "Jarmula, Lukasz"]
[Black "Kamsky, Gata"]
[WhiteFideId "1160664"]
[BlackFideId "2000024"]
[WhiteElo "2357"]
[BlackElo "2666"]
[Result "1/2-1/2"]
[Round "02"]
[TimeControl "180+1"]
[Date "2022.12.06"]
[WhiteClock "0:00:09"]
[BlackClock "0:00:17"]

1. e4 {[%clk 0:03:00]}  g6 {[%clk 0:02:57]} 2. d4 {[%clk 0:03:00]}  Bg7 {[%clk 0:02:54]} 3. Nf3 {[%clk 0:03:00]}  d6 {[%clk 0:02:54]} 4. Bd3 {[%clk 0:03:00]}  Nf6 {[%clk 0:02:47]} 5. O-O {[%clk 0:02:59]}  O-O {[%clk 0:02:47]} 6. Re1 {[%clk 0:02:56]}  Nc6 {[%clk 0:02:44]} 7. c3 {[%clk 0:02:56]}  e5 {[%clk 0:02:42]} 8. h3 {[%clk 0:02:55]}  Re8 {[%clk 0:02:41]} 9. a4 {[%clk 0:02:55]}  a5 {[%clk 0:02:37]} 10. Na3 {[%clk 0:02:54]}  Bd7 {[%clk 0:02:30]} 11. Nb5 {[%clk 0:02:50]}  Na7 {[%clk 0:02:21]} 12. Nxa7 {[%clk 0:02:41]}  Rxa7 {[%clk 0:02:20]} 13. Bg5 {[%clk 0:02:37]}  Ra8 {[%clk 0:02:16]} 14. Qd2 {[%clk 0:02:34]}  Qe7 {[%clk 0:02:14]} 15. Bc4 {[%clk 0:02:19]}  Rad8 {[%clk 0:02:03]} 16. Qc2 {[%clk 0:02:16]}  b6 {[%clk 0:02:01]} 17. Rad1 {[%clk 0:02:08]}  Rf8 {[%clk 0:01:58]} 18. Qb3 {[%clk 0:02:01]}  h6 {[%clk 0:01:49]} 19. Bc1 {[%clk 0:01:50]}  Bc6 {[%clk 0:01:47]} 20. Bd3 {[%clk 0:01:43]}  Kh8 {[%clk 0:01:43]} 21. Qc2 {[%clk 0:01:35]}  Rfe8 {[%clk 0:01:39]} 22. b3 {[%clk 0:01:16]}  Bb7 {[%clk 0:01:38]} 23. Ba3 {[%clk 0:00:55]}  c5 {[%clk 0:01:21]} 24. dxe5 {[%clk 0:00:54]}  dxe5 {[%clk 0:01:20]} 25. c4 {[%clk 0:00:40]}  Nh5 {[%clk 0:01:18]} 26. g3 {[%clk 0:00:37]}  Bc8 {[%clk 0:01:17]} 27. Bf1 {[%clk 0:00:36]}  Bf6 {[%clk 0:01:09]} 28. Bg2 {[%clk 0:00:33]}  Ng7 {[%clk 0:01:08]} 29. Bb2 {[%clk 0:00:30]}  Qc7 {[%clk 0:01:04]} 30. Rd5 {[%clk 0:00:28]}  Bb7 {[%clk 0:01:02]} 31. Rxd8 {[%clk 0:00:25]}  Rxd8 {[%clk 0:01:01]} 32. Rd1 {[%clk 0:00:18]}  Rxd1+ {[%clk 0:00:57]} 33. Qxd1 {[%clk 0:00:19]}  Ne6 {[%clk 0:00:54]} 34. Qd2 {[%clk 0:00:15]}  Bg7 {[%clk 0:00:48]} 35. Ne1 {[%clk 0:00:14]}  Nd4 {[%clk 0:00:47]} 36. Bxd4 {[%clk 0:00:13]}  exd4 {[%clk 0:00:45]} 37. Nd3 {[%clk 0:00:13]}  Kg8 {[%clk 0:00:35]} 38. Qe2 {[%clk 0:00:13]}  Bc8 {[%clk 0:00:25]} 39. f4 {[%clk 0:00:10]}  f6 {[%clk 0:00:18]} 40. Kh2 {[%clk 0:00:09]}  g5 {[%clk 0:00:17]} 1/2-1/2


[Site "https://www.chess.com"]

[Event "Titled Tuesday Blitz December 06 Late 2022"]
[White "Jobava, Baadur"]
[Black "Mladek, Richard"]
[WhiteFideId "13601520"]
[BlackFideId "386588"]
[WhiteElo "2582"]
[BlackElo "2271"]
[Result "1-0"]
[Round "02"]
[TimeControl "180+1"]
[Date "2022.12.06"]
[WhiteClock "0:01:01"]
[BlackClock "0:00:01"]

1. d4 {[%clk 0:03:00]}  d5 {[%clk 0:02:59]} 2. Nc3 {[%clk 0:03:00]}  Nf6 {[%clk 0:02:59]} 3. Bf4 {[%clk 0:03:01]}  c5 {[%clk 0:02:59]} 4. e3 {[%clk 0:03:01]}  cxd4 {[%clk 0:02:59]} 5. exd4 {[%clk 0:03:02]}  a6 {[%clk 0:02:59]} 6. Bd3 {[%clk 0:03:02]}  Nc6 {[%clk 0:02:58]} 7. Nge2 {[%clk 0:03:02]}  Bg4 {[%clk 0:02:56]} 8. f3 {[%clk 0:03:03]}  Bh5 {[%clk 0:02:56]} 9. h4 {[%clk 0:03:03]}  e6 {[%clk 0:02:48]} 10. g4 {[%clk 0:03:03]}  Bg6 {[%clk 0:02:48]} 11. h5 {[%clk 0:03:04]}  Bxd3 {[%clk 0:02:47]} 12. Qxd3 {[%clk 0:03:05]}  h6 {[%clk 0:02:39]} 13. O-O-O {[%clk 0:03:05]}  Bd6 {[%clk 0:02:33]} 14. Qe3 {[%clk 0:03:04]}  Bxf4 {[%clk 0:02:18]} 15. Nxf4 {[%clk 0:03:05]}  Qd6 {[%clk 0:02:13]} 16. Nd3 {[%clk 0:03:03]}  Rc8 {[%clk 0:01:33]} 17. Kb1 {[%clk 0:02:59]}  Nd7 {[%clk 0:01:23]} 18. Ne2 {[%clk 0:02:55]}  Na5 {[%clk 0:01:20]} 19. b3 {[%clk 0:02:54]}  Qb6 {[%clk 0:01:00]} 20. Nb2 {[%clk 0:02:45]}  Qc7 {[%clk 0:00:49]} 21. Rd2 {[%clk 0:02:34]}  b5 {[%clk 0:00:48]} 22. Nf4 {[%clk 0:02:31]}  Kf8 {[%clk 0:00:46]} 23. Nfd3 {[%clk 0:02:27]}  Rb8 {[%clk 0:00:42]} 24. Re1 {[%clk 0:02:19]}  Qc3 {[%clk 0:00:42]} 25. Nc5 {[%clk 0:02:03]}  Qxe3 {[%clk 0:00:37]} 26. Nxd7+ {[%clk 0:02:03]}  Ke7 {[%clk 0:00:38]} 27. Rxe3 {[%clk 0:02:04]}  Kxd7 {[%clk 0:00:37]} 28. Nd3 {[%clk 0:02:05]}  Nc6 {[%clk 0:00:25]} 29. Nc5+ {[%clk 0:01:53]}  Kd6 {[%clk 0:00:25]} 30. Nxa6 {[%clk 0:01:53]}  Ra8 {[%clk 0:00:25]} 31. Nc5 {[%clk 0:01:54]}  Nxd4 {[%clk 0:00:25]} 32. Ne4+ {[%clk 0:01:54]}  dxe4 {[%clk 0:00:13]} 33. Rxd4+ {[%clk 0:01:54]}  Ke7 {[%clk 0:00:13]} 34. Rexe4 {[%clk 0:01:52]}  Rhd8 {[%clk 0:00:13]} 35. Kb2 {[%clk 0:01:49]}  Rxd4 {[%clk 0:00:13]} 36. Rxd4 {[%clk 0:01:50]}  f5 {[%clk 0:00:14]} 37. gxf5 {[%clk 0:01:46]}  exf5 {[%clk 0:00:15]} 38. Rd5 {[%clk 0:01:46]}  g6 {[%clk 0:00:13]} 39. hxg6 {[%clk 0:01:46]}  Kf6 {[%clk 0:00:13]} 40. Rxb5 {[%clk 0:01:46]}  h5 {[%clk 0:00:13]} 41. Rb6+ {[%clk 0:01:45]}  Kg5 {[%clk 0:00:11]} 42. g7 {[%clk 0:01:40]}  Rg8 {[%clk 0:00:11]} 43. a4 {[%clk 0:01:39]}  h4 {[%clk 0:00:11]} 44. b4 {[%clk 0:01:20]}  h3 {[%clk 0:00:11]} 45. Rd6 {[%clk 0:01:20]}  h2 {[%clk 0:00:10]} 46. Rd1 {[%clk 0:01:20]}  Rxg7 {[%clk 0:00:11]} 47. Rh1 {[%clk 0:01:20]}  Rh7 {[%clk 0:00:10]} 48. a5 {[%clk 0:01:20]}  Kf4 {[%clk 0:00:11]} 49. a6 {[%clk 0:01:19]}  Kxf3 {[%clk 0:00:11]} 50. a7 {[%clk 0:01:18]}  Rxa7 {[%clk 0:00:11]} 51. Rxh2 {[%clk 0:01:18]}  Kg3 {[%clk 0:00:12]} 52. Rh6 {[%clk 0:01:16]}  f4 {[%clk 0:00:11]} 53. Rg6+ {[%clk 0:01:16]}  Kh3 {[%clk 0:00:08]} 54. Rf6 {[%clk 0:01:17]}  Kg3 {[%clk 0:00:08]} 55. c4 {[%clk 0:01:16]}  f3 {[%clk 0:00:07]} 56. b5 {[%clk 0:01:16]}  f2 {[%clk 0:00:06]} 57. Kb3 {[%clk 0:01:14]}  Re7 {[%clk 0:00:06]} 58. Kb4 {[%clk 0:01:10]}  Re3 {[%clk 0:00:05]} 59. Rxf2 {[%clk 0:01:06]}  Kxf2 {[%clk 0:00:06]} 60. b6 {[%clk 0:01:07]}  Re1 {[%clk 0:00:06]} 61. c5 {[%clk 0:01:05]}  Ke3 {[%clk 0:00:07]} 62. c6 {[%clk 0:01:05]}  Kd4 {[%clk 0:00:06]} 63. c7 {[%clk 0:01:05]}  Rb1+ {[%clk 0:00:06]} 64. Ka3 {[%clk 0:01:03]}  Rc1 {[%clk 0:00:03]} 65. b7 {[%clk 0:01:04]}  Rxc7 {[%clk 0:00:03]} 66. b8=Q {[%clk 0:01:04]}  Rc5 {[%clk 0:00:04]} 67. Qf4+ {[%clk 0:01:02]}  Kd5 {[%clk 0:00:05]} 68. Kb4 {[%clk 0:01:01]}  Rc6 {[%clk 0:00:04]} 69. Qf5+ {[%clk 0:01:01]}  Kd6 {[%clk 0:00:04]} 70. Kb5 {[%clk 0:01:01]}  Rc7 {[%clk 0:00:03]} 71. Qf4+ {[%clk 0:01:01]}  Kd7 {[%clk 0:00:03]} 72. Qf5+ {[%clk 0:01:01]}  Kd6 {[%clk 0:00:04]} 73. Qf6+ {[%clk 0:01:02]}  Kd7 {[%clk 0:00:03]} 74. Kb6 {[%clk 0:01:02]}  Rc8 {[%clk 0:00:03]} 75. Qf7+ {[%clk 0:01:02]}  Kd6 {[%clk 0:00:02]} 76. Qf4+ {[%clk 0:01:02]}  Kd7 {[%clk 0:00:03]} 77. Qf5+ {[%clk 0:01:02]}  Kd8 {[%clk 0:00:03]} 78. Qe5 {[%clk 0:01:01]}  Kd7 {[%clk 0:00:02]} 79. Kb7 {[%clk 0:01:02]}  Rc6 {[%clk 0:00:01]} 80. Qg7+ {[%clk 0:01:01]} 1-0


[Site "https://www.chess.com"]

[Event "Titled Tuesday Blitz December 06 Late 2022"]
[White "Johnson, Ben"]
[Black "Barria Zuniga, Daniel"]
[WhiteFideId "2010917"]
[BlackFideId "3400816"]
[WhiteElo "2193"]
[BlackElo "2414"]
[Result "1-0"]
[Round "02"]
[TimeControl "180+1"]
[Date "2022.12.07"]
[WhiteClock "0:00:10"]
[BlackClock "0:00:03"]

1. Nf3 {[%clk 0:02:59]}  g6 {[%clk 0:02:56]} 2. e4 {[%clk 0:02:59]}  Bg7 {[%clk 0:02:57]} 3. d4 {[%clk 0:03:00]}  c5 {[%clk 0:02:57]} 4. c4 {[%clk 0:02:58]}  Qb6 {[%clk 0:02:52]} 5. d5 {[%clk 0:02:44]}  Bxb2 {[%clk 0:02:51]} 6. Bxb2 {[%clk 0:02:45]}  Qxb2 {[%clk 0:02:50]} 7. Nbd2 {[%clk 0:02:46]}  d6 {[%clk 0:02:48]} 8. Bd3 {[%clk 0:02:44]}  e5 {[%clk 0:02:34]} 9. dxe6 {[%clk 0:02:39]}  Bxe6 {[%clk 0:02:34]} 10. Rb1 {[%clk 0:02:25]}  Qxa2 {[%clk 0:02:28]} 11. Rxb7 {[%clk 0:02:24]}  Nc6 {[%clk 0:02:26]} 12. O-O {[%clk 0:02:20]}  Nge7 {[%clk 0:02:24]} 13. e5 {[%clk 0:02:09]}  dxe5 {[%clk 0:02:19]} 14. Ne4 {[%clk 0:02:02]}  O-O {[%clk 0:02:18]} 15. Qc1 {[%clk 0:01:25]}  Kg7 {[%clk 0:01:44]} 16. Nxc5 {[%clk 0:01:18]}  Bf5 {[%clk 0:01:40]} 17. Bxf5 {[%clk 0:01:12]}  Nxf5 {[%clk 0:01:40]} 18. Re1 {[%clk 0:01:00]}  Rae8 {[%clk 0:01:37]} 19. Nd7 {[%clk 0:00:53]}  Rg8 {[%clk 0:01:29]} 20. Ndxe5 {[%clk 0:00:40]}  Nxe5 {[%clk 0:01:28]} 21. Nxe5 {[%clk 0:00:40]}  Re7 {[%clk 0:01:23]} 22. Rxe7 {[%clk 0:00:35]}  Nxe7 {[%clk 0:01:24]} 23. Qc3 {[%clk 0:00:20]}  Re8 {[%clk 0:00:23]} 24. Nc6+ {[%clk 0:00:15]}  Kf8 {[%clk 0:00:20]} 25. Nxe7 {[%clk 0:00:12]}  Qb2 {[%clk 0:00:03]} 26. Qxb2 {[%clk 0:00:10]} 1-0


[Site "https://www.chess.com"]

[Event "Titled Tuesday Blitz December 06 Late 2022"]
[White "Kaplan, Avi Harrison"]
[Black "Shapiro, Daniel"]
[WhiteFideId "30934559"]
[BlackFideId "2001780"]
[WhiteElo "1983"]
[BlackElo "2300"]
[Result "1-0"]
[Round "02"]
[TimeControl "180+1"]
[Date "2022.12.07"]
[WhiteClock "0:00:48"]
[BlackClock "0:00:26"]

1. d4 {[%clk 0:03:00]}  Nf6 {[%clk 0:03:00]} 2. c4 {[%clk 0:02:59]}  e6 {[%clk 0:02:59]} 3. Nc3 {[%clk 0:03:00]}  Bb4 {[%clk 0:02:58]} 4. Bd2 {[%clk 0:03:00]}  d5 {[%clk 0:02:54]} 5. Nf3 {[%clk 0:02:59]}  O-O {[%clk 0:02:52]} 6. e3 {[%clk 0:02:59]}  Nbd7 {[%clk 0:02:48]} 7. Bd3 {[%clk 0:02:59]}  c6 {[%clk 0:02:44]} 8. O-O {[%clk 0:02:58]}  Bd6 {[%clk 0:02:42]} 9. e4 {[%clk 0:02:55]}  e5 {[%clk 0:02:30]} 10. exd5 {[%clk 0:02:42]}  cxd5 {[%clk 0:02:22]} 11. dxe5 {[%clk 0:02:38]}  Nxe5 {[%clk 0:02:16]} 12. Nxe5 {[%clk 0:02:34]}  Bxe5 {[%clk 0:02:16]} 13. Re1 {[%clk 0:02:32]}  Ng4 {[%clk 0:01:58]} 14. h3 {[%clk 0:01:56]}  Qh4 {[%clk 0:01:47]} 15. Qf3 {[%clk 0:01:24]}  dxc4 {[%clk 0:01:09]} 16. Bf5 {[%clk 0:01:01]}  Nh2 {[%clk 0:01:00]} 17. Qe4 {[%clk 0:00:49]}  Bb8 {[%clk 0:00:26]} 18. Qxh4 {[%clk 0:00:48]} 1-0


[Site "https://www.chess.com"]

[Event "Titled Tuesday Blitz December 06 Late 2022"]
[White "Karas, Marek"]
[Black "Arbunic Castro, Giovanna"]
[WhiteFideId "14928558"]
[BlackFideId "3400549"]
[WhiteElo "2247"]
[BlackElo "1921"]
[Result "1-0"]
[Round "02"]
[TimeControl "180+1"]
[Date "2022.12.07"]
[WhiteClock "0:01:31"]
[BlackClock "0:00:04"]

1. d4 {[%clk 0:02:02]}  Nf6 {[%clk 0:02:57]} 2. Bf4 {[%clk 0:02:02]}  g6 {[%clk 0:02:57]} 3. Nc3 {[%clk 0:02:01]}  Bg7 {[%clk 0:02:56]} 4. e4 {[%clk 0:02:01]}  d6 {[%clk 0:02:56]} 5. Qd2 {[%clk 0:02:02]}  Nbd7 {[%clk 0:02:53]} 6. O-O-O {[%clk 0:02:01]}  c5 {[%clk 0:02:53]} 7. e5 {[%clk 0:01:58]}  dxe5 {[%clk 0:02:46]} 8. dxe5 {[%clk 0:01:57]}  Ng4 {[%clk 0:02:44]} 9. e6 {[%clk 0:01:56]}  fxe6 {[%clk 0:02:32]} 10. Bc4 {[%clk 0:01:49]}  e5 {[%clk 0:02:05]} 11. Bg3 {[%clk 0:01:46]}  Ngf6 {[%clk 0:01:50]} 12. Nf3 {[%clk 0:01:45]}  a6 {[%clk 0:01:33]} 13. Nxe5 {[%clk 0:01:44]}  b5 {[%clk 0:01:31]} 14. Bf7+ {[%clk 0:01:37]}  Kf8 {[%clk 0:01:29]} 15. Be6 {[%clk 0:01:38]}  Qb6 {[%clk 0:01:09]} 16. Bxd7 {[%clk 0:01:34]}  Bxd7 {[%clk 0:00:59]} 17. Nxd7+ {[%clk 0:01:34]}  Nxd7 {[%clk 0:00:51]} 18. Qxd7 {[%clk 0:01:35]}  Re8 {[%clk 0:00:04]} 19. Nd5 {[%clk 0:01:31]} 1-0


[Site "https://www.chess.com"]

[Event "Titled Tuesday Blitz December 06 Late 2022"]
[White "Lopez Gracia, Fernando"]
[Black "Pakleza, Zbigniew"]
[WhiteFideId "2207184"]
[BlackFideId "1119290"]
[WhiteElo "2423"]
[BlackElo "2410"]
[Result "0-1"]
[Round "02"]
[TimeControl "180+1"]
[Date "2022.12.07"]
[WhiteClock "0:02:13"]
[BlackClock "0:02:36"]

1. c4 {[%clk 0:03:00]}  c6 {[%clk 0:02:59]} 2. d4 {[%clk 0:03:00]}  d5 {[%clk 0:03:00]} 3. cxd5 {[%clk 0:03:01]}  cxd5 {[%clk 0:03:01]} 4. Bf4 {[%clk 0:03:01]}  Nf6 {[%clk 0:03:01]} 5. e3 {[%clk 0:03:02]}  Nc6 {[%clk 0:03:01]} 6. Nc3 {[%clk 0:03:02]}  Qb6 {[%clk 0:03:02]} 7. a3 {[%clk 0:02:40]}  Bf5 {[%clk 0:02:53]} 8. Ra2 {[%clk 0:02:25]}  e6 {[%clk 0:02:52]} 9. Nf3 {[%clk 0:02:22]}  Be7 {[%clk 0:02:45]} 10. h3 {[%clk 0:02:21]}  O-O {[%clk 0:02:45]} 11. Nh4 {[%clk 0:02:18]}  Be4 {[%clk 0:02:43]} 12. Nxe4 {[%clk 0:02:17]}  dxe4 {[%clk 0:02:44]} 13. g4 {[%clk 0:02:14]}  g5 {[%clk 0:02:36]} 14. Bxg5 {[%clk 0:02:13]}  Qa5+ {[%clk 0:02:36]} 0-1


[Site "https://www.chess.com"]

[Event "Titled Tuesday Blitz December 06 Late 2022"]
[White "Manukyan, Sargis A."]
[Black "Mahdavi, Reza"]
[WhiteFideId "13303970"]
[BlackFideId "12595926"]
[WhiteElo "2187"]
[BlackElo "2242"]
[Result "1/2-1/2"]
[Round "02"]
[TimeControl "180+1"]
[Date "2022.12.06"]
[WhiteClock "0:00:43"]
[BlackClock "0:01:27"]

1. Nf3 {[%clk 0:03:00]}  Nf6 {[%clk 0:02:58]} 2. g3 {[%clk 0:03:00]}  g6 {[%clk 0:02:58]} 3. b3 {[%clk 0:03:00]}  Bg7 {[%clk 0:02:59]} 4. Bb2 {[%clk 0:03:01]}  O-O {[%clk 0:03:00]} 5. c4 {[%clk 0:03:02]}  d6 {[%clk 0:03:00]} 6. d4 {[%clk 0:03:02]}  c5 {[%clk 0:02:59]} 7. Bg2 {[%clk 0:03:02]}  cxd4 {[%clk 0:02:12]} 8. Nxd4 {[%clk 0:03:01]}  Nc6 {[%clk 0:02:12]} 9. O-O {[%clk 0:02:59]}  Bd7 {[%clk 0:02:11]} 10. Nc3 {[%clk 0:02:59]}  a6 {[%clk 0:02:11]} 11. Rc1 {[%clk 0:02:57]}  Rc8 {[%clk 0:02:06]} 12. Nd5 {[%clk 0:02:53]}  Nxd5 {[%clk 0:02:01]} 13. Bxd5 {[%clk 0:02:49]}  Qa5 {[%clk 0:01:59]} 14. Nxc6 {[%clk 0:02:47]}  bxc6 {[%clk 0:02:00]} 15. Bxg7 {[%clk 0:02:47]}  Kxg7 {[%clk 0:02:00]} 16. Bf3 {[%clk 0:02:39]}  Qxa2 {[%clk 0:02:00]} 17. Ra1 {[%clk 0:02:30]}  Qb2 {[%clk 0:02:00]} 18. Rxa6 {[%clk 0:02:30]}  Rc7 {[%clk 0:02:00]} 19. Qa1 {[%clk 0:02:25]}  Qxa1 {[%clk 0:02:00]} 20. Rfxa1 {[%clk 0:02:26]}  Rb8 {[%clk 0:02:01]} 21. Ra7 {[%clk 0:02:18]}  Rbb7 {[%clk 0:01:58]} 22. Rxb7 {[%clk 0:02:17]}  Rxb7 {[%clk 0:01:58]} 23. Ra3 {[%clk 0:02:12]}  f5 {[%clk 0:01:58]} 24. e3 {[%clk 0:02:09]}  e5 {[%clk 0:01:58]} 25. Kf1 {[%clk 0:02:05]}  e4 {[%clk 0:01:56]} 26. Bd1 {[%clk 0:02:04]}  Kf6 {[%clk 0:01:55]} 27. h4 {[%clk 0:02:02]}  Ke5 {[%clk 0:01:55]} 28. Ke1 {[%clk 0:02:02]}  d5 {[%clk 0:01:54]} 29. cxd5 {[%clk 0:01:56]}  cxd5 {[%clk 0:01:55]} 30. Kd2 {[%clk 0:01:56]}  d4 {[%clk 0:01:55]} 31. Ra5+ {[%clk 0:01:55]}  Bb5 {[%clk 0:01:56]} 32. exd4+ {[%clk 0:01:53]}  Kxd4 {[%clk 0:01:56]} 33. Be2 {[%clk 0:01:49]}  Bxe2 {[%clk 0:01:43]} 34. Ra4+ {[%clk 0:01:40]}  Ke5 {[%clk 0:01:41]} 35. Kxe2 {[%clk 0:01:37]}  Rxb3 {[%clk 0:01:42]} 36. Ra7 {[%clk 0:01:38]}  h6 {[%clk 0:01:38]} 37. Ra6 {[%clk 0:01:35]}  Rb2+ {[%clk 0:01:38]} 38. Ke3 {[%clk 0:01:24]}  g5 {[%clk 0:01:38]} 39. Ra5+ {[%clk 0:01:20]}  Kf6 {[%clk 0:01:38]} 40. Ra6+ {[%clk 0:01:18]}  Kg7 {[%clk 0:01:38]} 41. hxg5 {[%clk 0:01:15]}  hxg5 {[%clk 0:01:39]} 42. Rc6 {[%clk 0:00:51]}  Rb3+ {[%clk 0:01:38]} 43. Ke2 {[%clk 0:00:51]}  Rd3 {[%clk 0:01:39]} 44. Re6 {[%clk 0:00:50]}  Rd7 {[%clk 0:01:39]} 45. g4 {[%clk 0:00:48]}  f4 {[%clk 0:01:28]} 46. Rxe4 {[%clk 0:00:47]}  Kf6 {[%clk 0:01:28]} 47. Ra4 {[%clk 0:00:45]}  Re7+ {[%clk 0:01:29]} 48. Kf3 {[%clk 0:00:45]}  Re6 {[%clk 0:01:30]} 49. Ra5 {[%clk 0:00:46]}  Rb6 {[%clk 0:01:30]} 50. Rf5+ {[%clk 0:00:43]}  Kg6 {[%clk 0:01:29]} 51. Rd5 {[%clk 0:00:43]}  Rb3+ {[%clk 0:01:30]} 52. Ke4 {[%clk 0:00:44]}  Rb4+ {[%clk 0:01:27]} 53. Kf3 {[%clk 0:00:43]}  Rb3+ {[%clk 0:01:27]} 54. Ke4 {[%clk 0:00:43]}  Rb4+ {[%clk 0:01:27]} 55. Kf3 {[%clk 0:00:43]}  Rb6 {[%clk 0:01:27]} 56. Ra5 {[%clk 0:00:42]}  Rc6 {[%clk 0:01:26]} 57. Rd5 {[%clk 0:00:42]}  Ra6 {[%clk 0:01:27]} 58. Rb5 {[%clk 0:00:42]}  Kf6 {[%clk 0:01:27]} 59. Rf5+ {[%clk 0:00:42]}  Kg6 {[%clk 0:01:27]} 60. Rb5 {[%clk 0:00:42]}  Ra3+ {[%clk 0:01:27]} 61. Ke4 {[%clk 0:00:43]}  Ra4+ {[%clk 0:01:27]} 62. Kf3 {[%clk 0:00:43]}  Ra6 {[%clk 0:01:22]} 63. Rc5 {[%clk 0:00:42]}  Rb6 {[%clk 0:01:22]} 64. Ra5 {[%clk 0:00:42]}  Rc6 {[%clk 0:01:22]} 65. Rb5 {[%clk 0:00:42]}  Re6 {[%clk 0:01:23]} 66. Ra5 {[%clk 0:00:42]}  Rf6 {[%clk 0:01:23]} 67. Rb5 {[%clk 0:00:42]}  Ra6 {[%clk 0:01:24]} 68. Rc5 {[%clk 0:00:42]}  Ra3+ {[%clk 0:01:24]} 69. Ke4 {[%clk 0:00:42]}  Ra4+ {[%clk 0:01:25]} 70. Kf3 {[%clk 0:00:42]}  Ra3+ {[%clk 0:01:26]} 71. Ke4 {[%clk 0:00:43]}  Ra4+ {[%clk 0:01:26]} 72. Kf3 {[%clk 0:00:43]}  Ra3+ {[%clk 0:01:27]} 1/2-1/2


[Site "https://www.chess.com"]